bitfinex/quotes_BTCUSD_20240627
["timestamp","ask_amount","ask_price","bid_price","bid_amount"]
[1719484773903,1.82573802,61313.0,61312.0,0.001924]
[1719484774151,2.00435951,61313.0,61312.0,0.001924]
[1719484776866,2.09965951,61313.0,61312.0,0.001924]
[1719484777038,2.08343356,61313.0,61312.0,0.001924]
[1719484777276,2.09963983,61313.0,61312.0,0.001924]
[1719484777705,2.09962473,61313.0,61312.0,0.001924]
[1719484778458,2.24612937,61313.0,61312.0,0.001924]
[1719484778661,2.24614388,61313.0,61312.0,0.001924]
[1719484780195,2.09953457,61313.0,61312.0,0.001924]
[1719484780369,2.22910576,61313.0,61312.0,0.001924]
[1719484780764,2.05019351,61313.0,61312.0,0.001924]
[1719484781091,2.22911692,61313.0,61312.0,0.001924]
[1719484781465,2.14756671,61313.0,61312.0,0.001924]
[1719484782063,2.1136706,61313.0,61312.0,0.001924]
[1719484783009,2.1136706,61313.0,61305.0,0.21060369]
[1719484783010,0.815605,61304.0,61303.0,0.1883]
[1719484783210,5.19715367,61304.0,61303.0,0.1883]
[1719484783420,5.17383089,61304.0,61303.0,0.19624308]
[1719484783749,5.17383089,61304.0,61303.0,0.1883]
[1719484784076,4.81298789,61304.0,61303.0,0.1883]
[1719484784447,4.87704398,61304.0,61303.0,0.1893]
[1719484784683,4.78174398,61304.0,61303.0,0.39990369]
[1719484784889,4.49210498,61304.0,61303.0,0.39990369]
[1719484785459,4.49201309,61304.0,61303.0,0.39990369]
[1719484785829,4.427957,61304.0,61303.0,0.39990369]
[1719484786095,4.353657,61304.0,61303.0,0.39990369]
[1719484786503,2.441779,61304.0,61303.0,0.40090369]
[1719484786704,2.47146936,61304.0,61303.0,0.40090369]
[1719484786918,2.47136936,61304.0,61303.0,0.40884677]
[1719484787115,2.4713705,61304.0,61303.0,0.40090369]
[1719484787317,2.4713705,61304.0,61303.0,0.40884677]
[1719484787588,2.6344915,61304.0,61303.0,0.60500369]
[1719484787791,3.05595165,61304.0,61303.0,0.60500369]
[1719484788577,3.17808719,61304.0,61303.0,0.60500369]
[1719484788783,3.05595165,61304.0,61303.0,0.60500369]
[1719484789024,3.05586667,61304.0,61303.0,0.60500369]
[1719484789642,3.02617517,61304.0,61303.0,0.60500369]
[1719484789958,3.05575215,61304.0,61303.0,0.60500369]
[1719484790111,3.05575215,61304.0,61303.0,0.60592769]
[1719484790316,3.05565215,61304.0,61303.0,0.60592769]
[1719484790516,3.17781114,61304.0,61303.0,0.60592769]
[1719484791312,2.8513855,61304.0,61303.0,0.60592769]
[1719484791555,2.7564255,61304.0,61303.0,0.60592769]
[1719484791875,2.7353935,61304.0,61303.0,0.60592769]
[1719484792865,2.73542861,61304.0,61303.0,0.60592769]
[1719484793078,0.51054161,61304.0,61303.0,0.60592769]
[1719484793480,2.60566861,61304.0,61303.0,0.61387709]
[1719484793679,2.64566861,61304.0,61303.0,0.60592769]
[1719484794407,2.66790054,61304.0,61303.0,0.60612769]
[1719484794611,2.66731469,61304.0,61303.0,0.60612769]
[1719484794877,0.05290891,61304.0,61303.0,0.395524]
[1719484795042,0.05290891,61304.0,61303.0,0.61612769]
[1719484795279,0.05290891,61304.0,61303.0,0.62408056]
[1719484795471,0.02323193,61304.0,61303.0,0.62408056]
[1719484795872,0.18635293,61304.0,61303.0,0.61408056]
[1719484797615,0.30861713,61304.0,61303.0,0.61408056]
[1719484798046,0.96110113,61304.0,61303.0,0.40347687]
[1719484798269,1.83846055,61304.0,61303.0,0.01107687]
[1719484798477,2.00079953,61304.0,61303.0,0.01107687]
[1719484798676,2.14753742,61304.0,61303.0,0.01107687]
[1719484798953,1.9995248,61304.0,61303.0,0.003124]
[1719484799454,1.8689895,61304.0,61303.0,0.003124]
[1719484799816,1.9609635,61304.0,61303.0,0.003124]
[1719484800275,1.9392305,61304.0,61303.0,0.003124]
[1719484800690,2.4339725,61304.0,61303.0,0.003124]
[1719484800918,2.4339725,61304.0,61303.0,0.00908248]
[1719484800919,2.59530621,61304.0,61303.0,0.00908248]
[1719484801237,2.60330621,61304.0,61303.0,0.002124]
[1719484801490,2.64152661,61304.0,61303.0,0.001124]
[1719484801725,2.64153527,61304.0,61303.0,0.001124]
[1719484801948,2.64553527,61304.0,61303.0,0.001124]
[1719484802277,2.80668973,61304.0,61303.0,0.001124]
[1719484802480,2.64153527,61304.0,61303.0,0.001124]
[1719484802676,2.48720156,61304.0,61303.0,0.21172769]
[1719484802999,2.31460256,61304.0,61303.0,0.21172769]
[1719484803202,2.31460256,61304.0,61303.0,0.001124]
[1719484803203,2.23237895,61304.0,61303.0,0.001124]
[1719484803400,2.39255967,61304.0,61303.0,0.001124]
[1719484803971,2.22437895,61304.0,61303.0,0.002124]
[1719484804374,2.39553264,61304.0,61303.0,0.003124]
[1719484804675,2.32665568,61304.0,61303.0,0.003124]
[1719484804878,2.32665568,61304.0,61302.0,0.009229]
[1719484804879,1.141868,61303.0,61302.0,0.00312401]
[1719484805083,4.18871998,61303.0,61302.0,0.00312401]
[1719484805285,4.09432242,61303.0,61302.0,0.00312401]
[1719484805705,3.69766942,61303.0,61302.0,0.00312401]
[1719484805910,3.75934488,61303.0,61302.0,0.00312401]
[1719484806157,3.74797736,61303.0,61302.0,0.00312401]
[1719484806313,3.79430408,61303.0,61302.0,0.00312401]
[1719484806518,2.74499562,61303.0,61302.0,0.00312401]
[1719484806969,2.23895362,61303.0,61302.0,0.00312401]
[1719484807173,2.11043762,61303.0,61302.0,0.00312401]
[1719484807407,1.90109162,61303.0,61302.0,0.00412401]
[1719484807610,1.90509162,61303.0,61302.0,0.00412401]
[1719484807822,1.84246355,61303.0,61302.0,0.00412401]
[1719484808017,1.85868254,61303.0,61302.0,0.00412401]
[1719484808667,2.25007954,61303.0,61302.0,0.00412401]
[1719484809043,2.21516997,61303.0,61302.0,0.00412401]
[1719484809631,2.21516997,61303.0,61302.0,0.20412401]
[1719484811173,2.21519629,61303.0,61302.0,0.20412401]
[1719484812109,2.14654029,61303.0,61302.0,0.2147277]
[1719484812311,1.80410729,61303.0,61302.0,0.2147277]
[1719484812510,1.72980729,61303.0,61302.0,0.2147277]
[1719484812809,1.72980729,61303.0,61302.0,0.2148217]
[1719484813469,0.77175629,61303.0,61302.0,0.2148217]
[1719484813653,0.77175629,61303.0,61302.0,0.5933217]
[1719484814055,0.77175629,61303.0,61302.0,0.60403419]
[1719484814213,0.75551098,61303.0,61302.0,0.60403419]
[1719484815617,0.77174896,61303.0,61302.0,0.60403419]
[1719484817279,0.75551098,61303.0,61302.0,0.60403419]
[1719484818278,0.78431224,61303.0,61302.0,0.60403419]
[1719484818463,1.49493671,61303.0,61302.0,0.0149305]
[1719484818863,1.85133671,61303.0,61302.0,0.00421801]
[1719484819526,4.17374271,61303.0,61302.0,0.00421801]
[1719484819879,3.668824,61303.0,61302.0,0.00421801]
[1719484820080,2.814869,61303.0,61302.0,0.00421801]
[1719484820311,2.715939,61303.0,61302.0,0.00421801]
[1719484821024,2.724039,61303.0,61302.0,0.00421801]
[1719484821218,0.81574,61294.0,61293.0,0.17534]
[1719484821431,2.79575345,61294.0,61293.0,0.00924]
[1719484821630,2.49190136,61294.0,61293.0,0.01996942]
[1719484821829,2.34527089,61294.0,61293.0,0.00924]
[1719484822030,2.11859153,61294.0,61293.0,0.00924]
[1719484822233,1.79859153,61294.0,61293.0,0.01996942]
[1719484822432,1.79859153,61294.0,61293.0,0.00924]
[1719484822663,1.79859153,61294.0,61293.0,0.01996942]
[1719484822867,1.77858153,61294.0,61293.0,0.00924]
[1719484823068,1.34920329,61294.0,61293.0,0.02096942]
[1719484823279,1.48982917,61294.0,61293.0,0.21984369]
[1719484823485,1.48982917,61294.0,61293.0,0.23057311]
[1719484823651,1.49182917,61294.0,61293.0,0.23057311]
[1719484823851,1.49179432,61294.0,61293.0,0.23057311]
[1719484824261,1.4917024,61294.0,61293.0,0.23057311]
[1719484824637,0.03176185,61294.0,61293.0,0.58347311]
[1719484825402,0.19490985,61294.0,61293.0,0.57274369]
[1719484825606,0.19490985,61294.0,61293.0,0.58351158]
[1719484825799,0.17868948,61294.0,61293.0,0.58351158]
[1719484826478,0.20090417,61294.0,61293.0,0.58351158]
[1719484826980,0.36324552,61294.0,61293.0,0.57290789]
[1719484827198,0.36324552,61294.0,61293.0,0.02000789]
[1719484827199,1.30642152,61294.0,61293.0,0.02000789]
[1719484827396,2.81533552,61294.0,61293.0,0.02000789]
[1719484827601,2.49533552,61294.0,61293.0,0.00924]
[1719484827773,2.41736205,61294.0,61293.0,0.00924]
[1719484828178,2.25502834,61294.0,61293.0,0.00924]
[1719484828570,2.27129315,61294.0,61293.0,0.00924]
[1719484828734,1.95129315,61294.0,61293.0,0.00924]
[1719484829355,2.05129315,61294.0,61293.0,0.00924]
[1719484829496,2.37758915,61294.0,61293.0,0.00924]
[1719484829696,2.53992286,61294.0,61293.0,0.00924]
[1719484830086,2.52365805,61294.0,61293.0,0.00924]
[1719484830255,2.68648727,61294.0,61293.0,0.00924]
[1719484830463,2.52415356,61294.0,61293.0,0.00924]
[1719484830600,2.37755155,61294.0,61293.0,0.00924]
[1719484830805,2.52415645,61294.0,61293.0,0.00924]
[1719484831000,2.37755155,61294.0,61293.0,0.00924]
[1719484831209,2.16075116,61294.0,61293.0,0.00924]
[1719484831758,2.32389916,61294.0,61293.0,0.00924]
[1719484832336,2.46886804,61294.0,61293.0,0.00924]
[1719484832550,2.22859916,61294.0,61293.0,0.00924]
[1719484832751,2.32389916,61294.0,61293.0,0.00924]
[1719484832969,2.3457457,61294.0,61293.0,0.00924]
[1719484833169,2.3457457,61294.0,61293.0,0.00753119]
[1719484833371,2.34577061,61294.0,61293.0,0.00753119]
[1719484833784,2.35377061,61294.0,61293.0,0.00853119]
[1719484833984,2.35380049,61294.0,61293.0,0.00853119]
[1719484834196,2.35580049,61294.0,61293.0,0.00853119]
[1719484834998,4.74406673,61294.0,61293.0,0.00853119]
[1719484835222,4.90640044,61294.0,61293.0,0.00853119]
[1719484835426,5.12489415,61294.0,61293.0,0.00853119]
[1719484836140,5.00630132,61294.0,61293.0,0.00853119]
[1719484836343,5.34432332,61294.0,61293.0,0.00853119]
[1719484836545,5.10299973,61294.0,61293.0,0.00853119]
[1719484836744,3.62757773,61294.0,61293.0,0.00753119]
[1719484836948,2.47437421,61294.0,61293.0,0.21913488]
[1719484837151,1.07770471,61294.0,61293.0,0.56983488]
[1719484837352,1.04737409,61294.0,61293.0,0.56883488]
[1719484837751,1.06137409,61294.0,61293.0,0.58452788]
[1719484837986,1.04737409,61294.0,61293.0,0.56883488]
[1719484838213,1.04737409,61294.0,61293.0,0.58452788]
[1719484839655,1.04983171,61294.0,61293.0,0.58452788]
[1719484839902,1.06564751,61294.0,61293.0,0.58452788]
[1719484840098,1.06364751,61294.0,61293.0,0.58452788]
[1719484840301,1.07664751,61294.0,61293.0,0.58452788]
[1719484840919,0.16466234,61294.0,61293.0,0.58452788]
[1719484841129,0.04838885,61294.0,61293.0,0.58452788]
[1719484841326,0.33363165,61294.0,61293.0,0.56883488]
[1719484841570,0.43366519,61294.0,61293.0,0.56883488]
[1719484841864,0.43366519,61294.0,61293.0,0.58451251]
[1719484842463,0.31153685,61294.0,61293.0,0.58451251]
[1719484842706,0.43367035,61294.0,61293.0,0.58451251]
[1719484843114,0.43366831,61294.0,61293.0,0.58451251]
[1719484843521,0.29799454,61294.0,61293.0,0.58451251]
[1719484843636,0.31153554,61294.0,61293.0,0.58451251]
[1719484848508,0.04838754,61294.0,61293.0,0.59451251]
[1719484850622,0.026541,61294.0,61293.0,0.68981251]
[1719484854656,0.013541,61294.0,61293.0,0.68981251]
[1719484855077,0.014541,61294.0,61293.0,0.68981251]
[1719484857410,0.014541,61294.0,61293.0,2.19420449]
[1719484857955,0.014541,61294.0,61293.0,1.99420449]
[1719484858206,0.014541,61294.0,61293.0,2.19420449]
[1719484859775,0.014541,61294.0,61293.0,2.39420449]
[1719484860177,0.14658014,61299.0,61298.0,1.235637]
[1719484860383,0.14658014,61299.0,61298.0,1.65012767]
[1719484860602,0.14658014,61299.0,61298.0,0.75538625]
[1719484861003,0.14658014,61299.0,61298.0,0.59224925]
[1719484861800,0.14658014,61299.0,61298.0,0.59324925]
[1719484862641,0.14658014,61299.0,61298.0,0.68854925]
[1719484863653,0.14658014,61299.0,61298.0,1.05088823]
[1719484864051,0.14658014,61299.0,61298.0,0.85588823]
[1719484864374,0.14658014,61299.0,61298.0,0.76058823]
[1719484864588,0.14658014,61299.0,61298.0,0.59824925]
[1719484864809,0.14658014,61299.0,61298.0,0.69354925]
[1719484866844,0.14658014,61299.0,61298.0,0.68854925]
[1719484867321,0.14658014,61299.0,61298.0,0.69154925]
[1719484868016,0.14658014,61299.0,61298.0,0.68854925]
[1719484868219,0.14758014,61299.0,61298.0,0.69154925]
[1719484869776,0.00084,61303.0,61298.0,0.69154925]
[1719484869777,0.094037,61311.0,61298.0,0.73698454]
[1719484869982,0.2088,61314.0,61312.0,1.43610369]
[1719484869983,0.036624,61313.0,61312.0,1.43610369]
[1719484870195,0.00084,61364.0,61324.0,1.47287569]
[1719484870311,0.23755753,61327.0,61326.0,1.73849569]
[1719484870509,0.00084,61364.0,61335.0,1.30972069]
[1719484870849,0.08130346,61353.0,61335.0,1.39813767]
[1719484871167,0.162999,61350.0,61335.0,0.65696884]
[1719484871310,0.162994,61352.0,61335.0,0.65696884]
[1719484871665,0.24429546,61353.0,61335.0,0.98304684]
[1719484871827,0.24429546,61353.0,61335.0,1.18304684]
[1719484872027,0.24429546,61353.0,61335.0,0.76244315]
[1719484872429,0.00184,61336.0,61335.0,0.76544315]
[1719484872657,0.00184,61336.0,61335.0,0.89074684]
[1719484873535,0.00284,61336.0,61335.0,0.89474684]
[1719484873778,0.00184,61336.0,61335.0,0.89174684]
[1719484874646,0.00184,61336.0,61335.0,0.23029086]
[1719484874847,0.00184,61336.0,61335.0,0.24029086]
[1719484874848,0.03190088,61336.0,61335.0,0.24029086]
[1719484875048,0.81802,61336.0,61335.0,0.02968717]
[1719484875251,0.963708,61336.0,61335.0,0.014]
[1719484875447,1.062708,61336.0,61335.0,0.01]
[1719484875647,1.20088915,61336.0,61335.0,0.01]
[1719484875873,0.87581715,61336.0,61335.0,0.213]
[1719484876045,1.29342415,61336.0,61335.0,0.013]
[1719484876388,1.29242415,61336.0,61335.0,0.01]
[1719484876584,1.30342415,61336.0,61335.0,0.01]
[1719484876966,0.163041,61334.0,61333.0,0.2]
[1719484877168,0.263041,61334.0,61333.0,0.2]
[1719484878009,0.263041,61334.0,61333.0,0.21060369]
[1719484878203,0.263041,61334.0,61333.0,0.2]
[1719484878550,0.163044,61333.0,61319.0,0.16308]
[1719484878756,0.163044,61333.0,61331.0,0.2]
[1719484878757,0.163047,61332.0,61331.0,0.2]
[1719484878935,0.163047,61332.0,61331.0,0.21060369]
[1719484879165,0.163047,61332.0,61331.0,0.22092853]
[1719484880319,0.23316488,61332.0,61331.0,0.22092853]
[1719484880520,0.23916488,61332.0,61331.0,0.22092853]
[1719484882426,0.163047,61332.0,61331.0,0.22092853]
[1719484882669,0.163047,61332.0,61331.0,0.21032484]
[1719484882872,0.165047,61332.0,61331.0,0.21032484]
[1719484883437,0.296047,61332.0,61331.0,0.21032484]
[1719484883835,1.94128598,61332.0,61331.0,0.01032484]
[1719484884051,2.10361969,61332.0,61328.0,0.2]
[1719484884260,2.10361969,61332.0,61327.0,0.2]
[1719484884261,0.163057,61328.0,61327.0,0.2]
[1719484884494,0.163057,61328.0,61327.0,0.21060369]
[1719484884495,1.565127,61328.0,61327.0,0.21060369]
[1719484885145,0.89187,61328.0,61327.0,0.21060369]
[1719484885332,0.81987,61328.0,61327.0,0.21060369]
[1719484885535,0.758676,61328.0,61327.0,0.21060369]
[1719484886839,0.92100971,61328.0,61327.0,0.21060369]
[1719484887801,0.92100971,61328.0,61327.0,0.21460369]
[1719484889225,0.758676,61328.0,61327.0,0.21460369]
[1719484889840,1.343124,61328.0,61327.0,0.21460369]
[1719484891343,1.202461,61328.0,61327.0,0.21460369]
[1719484892579,1.528576,61328.0,61327.0,0.21460369]
[1719484892976,1.528576,61328.0,61327.0,0.21552769]
[1719484893150,1.78664332,61328.0,61327.0,0.204924]
[1719484893679,1.69091498,61328.0,61327.0,0.21552769]
[1719484894460,1.70444856,61328.0,61327.0,0.21552769]
[1719484896006,1.70444856,61328.0,61327.0,0.204924]
[1719484896963,1.70444856,61328.0,61327.0,0.21552769]
[1719484897161,1.69091498,61328.0,61327.0,0.21552769]
[1719484897386,1.7044465,61328.0,61327.0,0.21552769]
[1719484897604,1.71797801,61328.0,61327.0,0.204924]
[1719484897813,1.71797801,61328.0,61327.0,0.21552769]
[1719484899441,0.74035203,61328.0,61327.0,0.21552769]
[1719484899602,0.72404203,61328.0,61327.0,0.21552769]
[1719484899795,1.21321403,61328.0,61327.0,0.21552769]
[1719484900183,1.21321403,61328.0,61327.0,0.22430926]
[1719484900402,1.19968252,61328.0,61327.0,0.22430926]
[1719484900572,0.61623003,61328.0,61327.0,0.21552769]
[1719484900942,1.63642952,61328.0,61327.0,0.22430926]
[1719484901165,1.46764603,61328.0,61327.0,0.21552769]
[1719484901387,1.44525403,61328.0,61327.0,0.21552769]
[1719484902709,1.54045403,61328.0,61327.0,0.21552769]
[1719484903676,1.52692752,61328.0,61327.0,0.21552769]
[1719484903883,1.54045612,61328.0,61327.0,0.21552769]
[1719484904321,1.48548612,61328.0,61327.0,0.21552769]
[1719484904608,1.49873599,61328.0,61327.0,0.21552769]
[1719484905664,1.49873599,61328.0,61327.0,0.204924]
[1719484906021,1.49873599,61328.0,61327.0,0.21370208]
[1719484907067,1.49873599,61328.0,61327.0,0.01370208]
[1719484907068,1.9871605,61328.0,61327.0,0.01370208]
[1719484907271,1.9871605,61328.0,61327.0,0.004924]
[1719484907711,2.47561448,61328.0,61327.0,0.004924]
[1719484907901,2.47561448,61328.0,61318.0,0.3661]
[1719484907902,0.163078,61320.0,61319.0,0.2]
[1719484908117,0.489259,61317.0,61316.0,0.2]
[1719484908315,1.05515913,61317.0,61316.0,0.2]
[1719484908572,1.16838627,61317.0,61316.0,0.2]
[1719484908743,0.84221327,61317.0,61316.0,0.2]
[1719484908883,0.84221327,61317.0,61316.0,0.21060369]
[1719484910114,0.815459,61317.0,61316.0,0.21060369]
[1719484910314,0.84225233,61317.0,61316.0,0.21060369]
[1719484910606,0.74705233,61317.0,61316.0,0.21060369]
[1719484910813,0.74705235,61317.0,61316.0,0.21060369]
[1719484911539,0.75505235,61317.0,61316.0,0.21160369]
[1719484911746,0.75506968,61317.0,61316.0,0.21160369]
[1719484913011,0.75506968,61317.0,61316.0,0.22040855]
[1719484913587,0.75507139,61317.0,61316.0,0.22040855]
[1719484915212,0.78064538,61317.0,61316.0,0.22040855]
[1719484916617,0.76709479,61317.0,61316.0,0.22040855]
[1719484916819,2.04564283,61317.0,61316.0,0.00980486]
[1719484917024,3.84285383,61317.0,61316.0,0.00980486]
[1719484917215,3.79667383,61317.0,61316.0,0.001]
[1719484917421,3.48510183,61317.0,61316.0,0.001]
[1719484918883,3.51272861,61317.0,61316.0,0.001]
[1719484919914,3.51278948,61317.0,61316.0,0.001]
[1719484920299,3.51278958,61317.0,61316.0,0.001]
[1719484921417,3.51278952,61317.0,61316.0,0.001]
[1719484922224,3.48593746,61317.0,61316.0,0.001]
[1719484922404,3.51279887,61317.0,61316.0,0.001]
[1719484922999,3.35046516,61317.0,61316.0,0.001]
[1719484925242,3.11236516,61317.0,61316.0,0.001]
[1719484925578,3.3369395,61317.0,61316.0,0.00121]
[1719484925784,3.35046528,61317.0,61316.0,0.00121]
[1719484926337,3.35046528,61317.0,61316.0,0.002134]
[1719484926766,3.21716528,61317.0,61316.0,0.002134]
[1719484928657,3.19030375,61317.0,61316.0,0.002134]
[1719484928857,3.21724296,61317.0,61316.0,0.002134]
[1719484929238,3.19030375,61317.0,61316.0,0.002134]
[1719484929397,2.16227322,61317.0,61316.0,0.002134]
[1719484929750,4.65653122,61317.0,61316.0,0.002134]
[1719484929969,4.8163006,61317.0,61316.0,0.002134]
[1719484930261,4.66990569,61317.0,61316.0,0.002134]
[1719484930627,4.48611979,61317.0,61316.0,0.002134]
[1719484930830,4.58141979,61317.0,61316.0,0.002134]
[1719484931578,4.49414658,61317.0,61316.0,0.001134]
[1719484932010,4.58920192,61317.0,61316.0,0.002134]
[1719484932173,4.57520192,61317.0,61316.0,0.001134]
[1719484932475,4.57520484,61317.0,61316.0,0.001134]
[1719484932874,4.57320484,61317.0,61316.0,0.001134]
[1719484933096,5.90926401,61317.0,61316.0,0.001134]
[1719484933300,6.09695392,61317.0,61316.0,0.00106083]
[1719484933661,5.94526401,61317.0,61316.0,0.00106083]
[1719484933856,5.95926401,61317.0,61316.0,0.00106083]
[1719484934286,6.10991855,61317.0,61316.0,0.00106083]
[1719484934625,6.30472405,61317.0,61316.0,0.00106083]
[1719484934830,6.31872405,61317.0,61316.0,0.00106083]
[1719484935024,6.33272405,61317.0,61316.0,0.00106083]
[1719484935441,6.27864175,61317.0,61316.0,0.00106083]
[1719484935642,6.27864175,61317.0,61303.0,0.1534]
[1719484935643,0.815605,61304.0,61303.0,0.1534]
[1719484935855,1.15543832,61304.0,61303.0,0.1534]
[1719484935975,1.141905,61304.0,61303.0,0.16230019]
[1719484936220,1.16890202,61304.0,61303.0,0.1534]
[1719484936699,1.15543915,61304.0,61303.0,0.1534]
[1719484936904,1.16890181,61304.0,61303.0,0.1534]
[1719484937138,1.1689017,61304.0,61303.0,0.1534]
[1719484937332,1.1729017,61304.0,61303.0,0.1534]
[1719484937556,2.71492153,61304.0,61303.0,0.1534]
[1719484937785,1.57307453,61304.0,61299.0,0.3667]
[1719484937970,0.0953,61300.0,61299.0,0.3667]
[1719484938183,0.92449415,61300.0,61299.0,0.3667]
[1719484938378,1.02449415,61300.0,61299.0,0.3667]
[1719484938726,1.17447395,61300.0,61299.0,0.3667]
[1719484938925,1.16100822,61300.0,61299.0,0.3667]
[1719484939154,1.17446804,61300.0,61299.0,0.3667]
[1719484939398,1.14747725,61300.0,61299.0,0.3667]
[1719484939629,1.17447102,61300.0,61299.0,0.3667]
[1719484940275,1.17447102,61300.0,61299.0,0.2025]
[1719484940471,1.17447102,61300.0,61299.0,0.2114466]
[1719484940472,1.17447453,61300.0,61299.0,0.2114466]
[1719484941212,1.17447453,61300.0,61299.0,0.2134466]
[1719484941413,1.17447453,61300.0,61299.0,0.2174466]
[1719484941796,2.59501053,61300.0,61299.0,0.0149466]
[1719484942219,2.58149297,61300.0,61299.0,0.006]
[1719484942399,2.75736912,61300.0,61299.0,0.006]
[1719484942600,2.75736912,61300.0,61299.0,0.002]
[1719484942799,2.81178404,61300.0,61299.0,0.002]
[1719484944156,1.141997,61296.0,61295.0,0.4059]
[1719484944303,2.43934321,61296.0,61295.0,0.4059]
[1719484944672,2.27620121,61296.0,61295.0,0.4059]
[1719484944947,2.31997817,61296.0,61295.0,0.4059]
[1719484945207,2.14117217,61296.0,61295.0,0.4059]
[1719484945477,1.87229217,61296.0,61295.0,0.4059]
[1719484945675,1.88583516,61296.0,61295.0,0.4059]
[1719484945943,1.89383516,61296.0,61295.0,0.41485635]
[1719484948147,1.89783516,61296.0,61295.0,0.41485635]
[1719484948776,1.8978383,61296.0,61295.0,0.41485635]
[1719484949048,1.8978383,61296.0,61295.0,0.42546004]
[1719484949298,0.64699527,61296.0,61295.0,0.59496004]
[1719484949519,0.12553727,61296.0,61295.0,0.59496004]
[1719484949718,0.275142,61296.0,61295.0,0.59496004]
[1719484950304,0.271142,61296.0,61295.0,0.59496004]
[1719484950501,0.108,61296.0,61295.0,0.59496004]
[1719484950659,0.267142,61296.0,61295.0,0.59496004]
[1719484950864,0.104,61296.0,61295.0,0.59496004]
[1719484951084,0.012,61296.0,61295.0,0.59496004]
[1719484951258,0.108,61296.0,61295.0,0.59496004]
[1719484951463,0.1,61296.0,61295.0,0.58600369]
[1719484951662,0.1,61296.0,61295.0,0.59200369]
[1719484951867,0.1,61296.0,61295.0,0.60102875]
[1719484952829,0.0953,61297.0,61296.0,0.57770369]
[1719484953321,0.0953,61297.0,61296.0,0.58672631]
[1719484953747,0.02249872,61300.0,61299.0,0.58770369]
[1719484953990,0.131,61304.0,61303.0,0.57770369]
[1719484954191,0.3263,61304.0,61303.0,0.57770369]
[1719484954398,0.74984,61304.0,61303.0,0.58669197]
[1719484954605,0.77202248,61304.0,61303.0,0.57770369]
[1719484954777,0.63386648,61304.0,61303.0,0.58669197]
[1719484955181,0.64286648,61304.0,61303.0,0.58669197]
[1719484956167,0.009,61304.0,61303.0,0.92215495]
[1719484956369,0.009,61304.0,61303.0,1.24840295]
[1719484956567,0.00866894,61304.0,61303.0,1.24840295]
[1719484957376,0.01466894,61304.0,61303.0,0.92215495]
[1719484957577,0.006,61304.0,61303.0,0.92215495]
[1719484957946,0.009,61304.0,61303.0,0.92215495]
[1719484958140,0.02185844,61309.0,61308.0,0.019952]
[1719484958389,0.02185844,61309.0,61308.0,0.597653]
[1719484958601,0.0953,61313.0,61312.0,0.57870369]
[1719484958758,0.1,61315.0,61314.0,0.21060369]
[1719484958960,0.11352085,61315.0,61314.0,0.21953839]
[1719484959166,0.11352085,61315.0,61314.0,0.0089347]
[1719484959369,0.11352085,61315.0,61314.0,0.21953839]
[1719484959670,0.11352085,61315.0,61314.0,0.0089347]
[1719484959892,0.11352265,61315.0,61314.0,0.21953839]
[1719484960242,0.27661465,61315.0,61314.0,0.21953839]
[1719484960448,0.263092,61315.0,61314.0,0.21953839]
[1719484960660,0.29839392,61315.0,61314.0,0.21953839]
[1719484961418,0.61805347,61315.0,61314.0,0.21953839]
[1719484961619,0.6315704,61315.0,61314.0,0.21953839]
[1719484961843,0.74597458,61315.0,61314.0,0.21953839]
[1719484962338,0.75597458,61315.0,61314.0,0.21953839]
[1719484962554,0.6415704,61315.0,61314.0,0.21953839]
[1719484964720,0.62805347,61315.0,61314.0,0.21953839]
[1719484964943,0.64156857,61315.0,61314.0,0.21060369]
[1719484966824,0.62805347,61315.0,61314.0,0.21060369]
[1719484967088,0.64156754,61315.0,61314.0,0.21060369]
[1719484967423,1.00672227,61315.0,61314.0,0.2]
[1719484967807,1.00672227,61315.0,61314.0,0.2194822]
[1719484968046,1.00672331,61315.0,61314.0,0.2194822]
[1719484968256,0.96775258,61315.0,61314.0,0.2194822]
[1719484968497,0.95423747,61315.0,61314.0,0.2194822]
[1719484968902,0.96775334,61315.0,61314.0,0.2194822]
[1719484971359,0.96775803,61315.0,61314.0,0.2194822]
[1719484974545,0.96775595,61315.0,61314.0,0.2194822]
[1719484974896,1.00397414,61315.0,61314.0,0.2194822]
[1719484977630,0.99045566,61315.0,61314.0,0.2194822]
[1719484977831,1.00397859,61315.0,61314.0,0.2194822]
[1719484978236,1.00397833,61315.0,61314.0,0.2194822]
[1719484979899,1.00397833,61315.0,61314.0,0.20887851]
[1719484980686,0.99045566,61315.0,61314.0,0.20887851]
[1719484980914,1.72660274,61315.0,61314.0,0.00887851]
[1719484981121,2.54585474,61315.0,61314.0,0.00887851]
[1719484981329,0.815527,61310.0,61309.0,0.2]
[1719484981501,2.0063851,61310.0,61309.0,0.2]
[1719484981729,2.0063851,61310.0,61308.0,0.2]
[1719484981730,0.81554,61309.0,61308.0,0.2]
[1719484981880,1.8358631,61309.0,61308.0,0.2]
[1719484982200,1.6364571,61309.0,61308.0,0.2]
[1719484982996,1.6394571,61309.0,61308.0,0.2]
[1719484983166,1.80179081,61309.0,61308.0,0.2]
[1719484983459,1.63946429,61309.0,61308.0,0.2]
[1719484983908,1.48217729,61309.0,61308.0,0.2]
[1719484985670,0.81558,61306.0,61305.0,0.2]
[1719484985866,0.92911129,61306.0,61305.0,0.2]
[1719484986196,0.26701437,61306.0,61303.0,0.2]
[1719484986328,0.26701437,61306.0,61302.0,0.2]
[1719484986329,0.326248,61303.0,61302.0,0.2]
[1719484986538,1.907751,61303.0,61302.0,0.2]
[1719484986738,0.815632,61302.0,61301.0,0.2]
[1719484987020,0.815632,61302.0,61299.0,0.200924]
[1719484987021,0.81566,61300.0,61299.0,0.200924]
[1719484987144,1.241924,61300.0,61299.0,0.000924]
[1719484987369,1.4177873,61300.0,61299.0,0.000924]
[1719484987565,1.5566873,61300.0,61299.0,0.000924]
[1719484988197,1.55668721,61300.0,61299.0,0.000924]
[1719484988391,1.71754184,61300.0,61299.0,0.000924]
[1719484988596,1.70401761,61300.0,61299.0,0.000924]
[1719484988795,1.57864221,61300.0,61299.0,0.000924]
[1719484989202,1.42078758,61300.0,61299.0,0.21152769]
[1719484989625,1.51598758,61300.0,61299.0,0.22044751]
[1719484989827,1.51599075,61300.0,61299.0,0.22044751]
[1719484990074,0.11652777,61300.0,61299.0,0.59084751]
[1719484990379,0.11772777,61300.0,61299.0,0.60084751]
[1719484990586,0.21772777,61300.0,61299.0,0.59084751]
[1719484991366,0.21472777,61300.0,61299.0,0.59084751]
[1719484991732,1.03038777,61300.0,61299.0,0.59764751]
[1719484992007,0.70712377,61300.0,61299.0,0.59764751]